bitfinex-derivatives/quotes_ETHF0:USTF0_20260121
["timestamp","ask_amount","ask_price","bid_price","bid_amount"]
[1769033136499,0.28342075,3036.3,3035.2,1.32116837]
[1769033136699,0.28342075,3036.2,3035.2,1.32116837]
[1769033136905,1.25944077,3036.7,3035.2,1.32116837]
[1769033137103,1.11384228,3036.6,3035.2,1.32116837]
[1769033137305,1.11384228,3036.5,3035.2,1.32116837]
[1769033137500,1.11384228,3036.4,3035.2,1.32116837]
[1769033137698,0.28337679,3036.3,3035.2,1.32116837]
[1769033137901,0.28337679,3036.2,3035.2,1.32116837]
[1769033138094,1.25944077,3036.7,3035.2,1.32116837]
[1769033138306,1.11346068,3036.6,3035.2,1.32116837]
[1769033138504,1.11346068,3036.5,3035.2,1.32116837]
[1769033138705,1.25944077,3036.7,3035.2,1.32116837]
[1769033138706,1.11346068,3036.4,3035.2,1.32116837]
[1769033139004,0.28323934,3036.3,3035.2,1.32116837]
[1769033139305,0.28323934,3036.2,3035.2,1.32116837]
[1769033139504,0.28323934,3036.1,3035.2,1.32116837]
[1769033139702,1.25944077,3036.6,3035.2,1.32116837]
[1769033139903,1.11526862,3036.5,3035.2,1.32116837]
[1769033140106,1.11526862,3036.4,3035.2,1.32116837]
[1769033140306,1.11526862,3036.3,3035.2,1.32116837]
[1769033140497,0.28328616,3036.2,3035.2,1.32116837]
[1769033140695,0.28328616,3036.1,3034.8,1.32323354]
[1769033140900,0.28328616,3036.0,3034.8,1.32323354]
[1769033141105,1.25944077,3036.6,3034.8,1.32323354]
[1769033141300,1.25944077,3036.4,3034.8,1.32323354]
[1769033141604,1.25944077,3036.2,3034.8,0.0036564]
[1769033141801,1.11517324,3036.1,3034.8,0.0036564]
[1769033142102,1.11517324,3036.0,3034.8,0.0036564]
[1769033142302,0.28314938,3035.9,3034.8,0.0036564]
[1769033142505,0.28314938,3035.8,3034.8,0.0036564]
[1769033142701,1.25944077,3036.2,3034.8,0.0036564]
[1769033142906,1.11466489,3036.1,3034.8,0.0036564]
[1769033143209,1.11466489,3036.0,3034.8,0.0036564]
[1769033143406,0.28313781,3035.9,3034.8,0.0036564]
[1769033143606,0.28313781,3035.8,3034.8,0.0036564]
[1769033143907,0.28313781,3035.7,3034.8,0.0036564]
[1769033144207,1.25944077,3036.2,3034.8,0.0036564]
[1769033144408,1.11427912,3036.1,3034.8,0.0036564]
[1769033144608,2.37371873,3036.0,3034.8,0.0036564]
[1769033144810,0.28304269,3035.9,3034.8,0.0036564]
[1769033145123,1.11421629,3035.8,3034.8,0.0036564]
[1769033145313,1.11421629,3035.7,3034.8,0.0036564]
[1769033145610,0.28304269,3035.6,3034.8,0.0036564]
[1769033145809,0.28304269,3035.5,3034.8,0.0036564]
[1769033146009,0.28304269,3035.4,3034.8,0.0036564]
[1769033146210,0.00339418,3035.6,3034.8,0.0036564]
[1769033146400,0.28278648,3035.5,3034.8,0.0036564]
[1769033146599,0.00339418,3035.6,3034.8,0.0036564]
[1769033146808,0.28280778,3035.5,3034.8,0.0036564]
[1769033147007,0.00339418,3035.6,3034.8,0.0036564]
[1769033147201,0.28280927,3035.5,3034.8,0.0036564]
[1769033147408,0.00339418,3035.6,3034.8,0.0036564]
[1769033147707,0.28274829,3035.5,3034.8,0.0036564]
[1769033147907,0.00339418,3035.6,3034.8,0.0036564]
[1769033148217,0.28274843,3035.5,3034.8,0.0036564]
[1769033148414,0.00339418,3035.6,3034.8,0.0036564]
[1769033148709,0.28274466,3035.5,3034.8,0.0036564]
[1769033148913,0.00339418,3035.6,3034.8,0.0036564]
[1769033149105,0.28273217,3035.5,3034.8,0.0036564]
[1769033149309,1.26283495,3035.6,3034.8,0.0036564]
[1769033149516,0.28269515,3035.5,3034.8,0.0036564]
[1769033149715,1.26283495,3035.6,3034.8,0.0036564]
[1769033149907,0.28270247,3035.5,3034.8,0.0036564]
[1769033150207,1.26283495,3035.6,3034.8,0.0036564]
[1769033150408,0.28268114,3035.5,3034.8,0.0036564]
[1769033150614,1.26283495,3035.6,3034.8,0.0036564]
[1769033150814,0.28268238,3035.5,3034.8,0.0036564]
[1769033151116,0.28271439,3035.4,3034.8,0.0036564]
[1769033151415,1.26283495,3035.6,3034.8,0.0036564]
[1769033151714,0.28269089,3035.5,3034.8,0.0036564]
[1769033151913,1.26283495,3035.6,3034.8,0.0036564]
[1769033152108,0.28270564,3035.5,3034.8,0.0036564]
[1769033152309,1.26283495,3035.6,3034.8,0.0036564]
[1769033152502,0.28269864,3035.5,3034.8,0.0036564]
[1769033152707,0.28269602,3035.4,3034.8,0.0036564]
[1769033152921,1.26283495,3035.6,3034.2,0.16491]
[1769033153114,0.28269622,3035.5,3034.2,0.16491]
[1769033153313,0.28269622,3035.4,3034.2,0.16491]
[1769033153616,1.26283495,3035.6,3034.2,0.16491]
[1769033153817,0.2827052,3035.5,3034.2,0.1691217]
[1769033154014,0.2827052,3035.4,3034.2,0.1691217]
[1769033154319,1.26283495,3035.6,3034.2,0.1691217]
[1769033154515,0.28272655,3035.5,3034.2,0.1691217]
[1769033154714,0.28272655,3035.4,3034.2,0.1691217]
[1769033154917,1.26283495,3035.6,3034.2,0.1691217]
[1769033155113,0.28272623,3035.5,3034.2,0.1691217]
[1769033155312,0.28272623,3035.4,3034.2,0.1691217]
[1769033155609,1.26283495,3035.6,3034.2,0.1691217]
[1769033155810,0.28276895,3035.5,3034.2,0.1691217]
[1769033156006,0.28276895,3035.4,3034.2,0.1691217]
[1769033156212,1.26283495,3035.6,3034.2,0.1691217]
[1769033156411,0.28276512,3035.5,3034.2,0.1691217]
[1769033156715,0.28276512,3035.4,3034.2,0.1691217]
[1769033156914,1.26283495,3035.6,3034.2,0.1691217]
[1769033157116,0.28276551,3035.5,3034.2,0.1691217]
[1769033157420,0.28276551,3035.4,3034.2,0.1691217]
[1769033157621,1.26283495,3035.6,3034.2,0.1691217]
[1769033157813,0.28281643,3035.5,3034.2,0.1691217]
[1769033158013,0.28281643,3035.4,3034.2,0.1691217]
[1769033158211,1.26283495,3035.6,3034.2,0.1691217]
[1769033158415,0.28285145,3035.5,3034.2,0.1691217]
[1769033158614,0.28285145,3035.4,3034.2,0.1691217]
[1769033158814,1.26283495,3035.6,3034.2,0.1691217]
[1769033159014,0.28285878,3035.5,3034.2,0.1691217]
[1769033159216,0.28285878,3035.4,3034.2,0.1691217]
[1769033159519,1.26283495,3035.6,3034.2,0.1691217]
[1769033159721,0.28287852,3035.5,3034.2,0.1691217]
[1769033159911,0.28287852,3035.4,3034.2,0.1691217]
[1769033160111,1.26283495,3035.6,3034.2,0.1691217]
[1769033160319,0.28287492,3035.5,3034.2,0.1691217]
[1769033160507,0.28287492,3035.4,3034.2,0.1691217]
[1769033160708,1.26283495,3035.6,3034.2,0.1691217]
[1769033160912,0.28285145,3035.5,3034.2,0.1691217]
[1769033161118,0.28285145,3035.4,3034.2,0.1691217]
[1769033161418,1.26283495,3035.6,3034.2,0.1691217]
[1769033161620,0.28286992,3035.5,3034.4,1.4617377]
[1769033161824,0.00339418,3035.6,3034.4,1.4617377]
[1769033162119,0.28285918,3035.5,3034.4,1.4617377]
[1769033162420,0.00339418,3035.6,3034.4,1.4617377]
[1769033162715,0.28293424,3035.5,3034.4,1.4617377]
[1769033162920,0.00339418,3035.6,3034.4,1.4617377]
[1769033163218,0.28294081,3035.5,3034.4,1.4617377]
[1769033163419,0.00339418,3035.6,3034.4,1.4617377]
[1769033163613,0.2829837,3035.5,3034.4,1.4617377]
[1769033163813,0.00339418,3035.6,3034.4,1.4617377]
[1769033164014,0.28298554,3035.5,3034.4,1.4617377]
[1769033164214,0.00339418,3035.6,3034.4,1.4617377]
[1769033164416,0.28302143,3035.5,3034.4,1.4617377]
[1769033164623,0.00339418,3035.6,3034.4,1.4617377]
[1769033164822,0.2831131,3035.5,3034.4,1.4617377]
[1769033165123,0.00339418,3035.6,3034.9,1.2968477]
[1769033176224,2.35892028,3036.7,3035.1,0.16486]
[1769033176429,0.84053868,3036.6,3035.2,1.2968477]
[1769033176630,0.84053868,3036.5,3035.2,1.4616977]
[1769033176833,0.84053868,3036.4,3035.4,1.4616877]
[1769033177029,0.28134571,3036.3,3035.6,1.2968477]
[1769033177230,0.0036375,3036.3,3035.6,1.2968477]
[1769033179738,1.37639623,3036.3,3035.0,0.16486]
[1769033182438,1.37639623,3036.3,3034.7,2.629]
[1769033182439,0.0036375,3036.3,3035.2,1.2968477]
[1769033182638,0.0036375,3036.3,3035.4,0.16484]
[1769033185348,1.37275873,3037.3,3035.6,1.4616777]
[1769033185546,2.21087263,3037.2,3035.6,1.4616777]
[1769033185743,2.21087263,3037.1,3035.6,1.4616777]
[1769033185947,0.8381139,3037.0,3035.6,1.4616777]
[1769033186244,0.84127244,3037.0,3035.6,1.4616777]
[1769033186445,0.00315854,3037.0,3035.6,1.4616777]
[1769033187645,0.00315854,3037.0,3036.0,1.2968477]
[1769033188043,1.37275873,3037.9,3036.1,1.4616477]
[1769033188241,0.83798794,3037.8,3036.1,1.4616477]
[1769033188441,0.83798794,3037.7,3036.1,1.4616477]
[1769033188642,0.83798794,3037.6,3036.2,0.1648]
[1769033188846,0.83798794,3037.5,3036.2,1.4616477]
[1769033189144,0.00415912,3037.5,3036.4,1.4616377]
[1769033189344,0.00415912,3037.5,3036.4,1.46414152]
[1769033192848,0.00415912,3037.5,3036.5,1.40183811]
[1769033193049,0.00415912,3037.5,3036.7,0.16477]
[1769033193549,1.36899984,3038.8,3037.2,0.16474]
[1769033193855,1.11549284,3038.7,3037.2,1.56657811]
[1769033194152,1.11549284,3038.6,3037.2,1.56657811]
[1769033194353,0.27843102,3038.5,3037.2,1.56657811]
[1769033194651,0.27843102,3038.4,3037.2,1.56657811]
[1769033194844,0.00349638,3038.6,3037.2,1.56657811]
[1769033195040,0.2783587,3038.5,3037.2,1.56657811]
[1769033195244,0.00349638,3038.6,3037.3,1.56657811]
[1769033196147,1.36899984,3038.4,3036.7,0.16477]
[1769033196748,1.36899984,3038.2,3036.7,0.16477]
[1769033197052,1.36899984,3038.2,3036.4,0.00250382]
[1769033197053,1.36899984,3038.0,3036.4,0.00250382]
[1769033197251,2.48307339,3037.9,3036.4,0.00250382]
[1769033197452,0.27808292,3037.8,3036.4,0.00250382]
[1769033202559,2.36241666,3038.6,3036.8,1.40183811]
[1769033202560,0.00349638,3038.6,3036.8,1.40183811]
[1769033202753,1.11405747,3038.5,3036.8,1.40183811]
[1769033202953,0.00349638,3038.6,3036.8,1.40183811]
[1769033202954,0.27810722,3038.4,3036.8,1.40183811]
[1769033203157,0.00349638,3038.6,3036.8,1.40183811]
[1769033203356,0.27809074,3038.5,3036.8,1.40183811]
[1769033203558,0.00349638,3038.6,3037.0,0.16475]
[1769033203761,1.36899984,3038.4,3037.0,0.16475]
[1769033204154,0.00349638,3038.6,3037.0,1.56658811]
[1769033204456,0.00349638,3038.6,3037.3,1.40183811]
[1769033204956,0.00349638,3038.6,3037.5,1.56656811]
[1769033206061,0.00349638,3038.6,3037.7,1.56655811]
[1769033206259,1.36899984,3039.6,3037.9,1.40183811]
[1769033206462,1.11382103,3039.5,3037.9,1.40183811]
[1769033206661,1.11382103,3039.4,3037.9,1.40183811]
[1769033206856,0.27804371,3039.3,3037.9,1.40183811]
[1769033207057,0.27804371,3039.2,3037.9,1.40183811]
[1769033207367,0.0028202,3039.2,3037.9,1.40183811]
[1769033207960,0.0028202,3039.2,3038.2,1.40183811]
[1769033208160,1.36899984,3040.0,3038.2,1.56652811]
[1769033208363,1.11242221,3039.9,3038.2,1.56652811]
[1769033208665,0.27782388,3039.8,3038.2,1.56652811]
[1769033208967,0.27760003,3039.7,3038.2,1.56652811]
[1769033209164,0.00384246,3039.7,3038.2,1.56652811]
[1769033209966,0.00384246,3039.7,3038.5,1.40183811]
[1769033210266,0.00384246,3039.7,3038.5,1.56650811]
[1769033212763,0.00384246,3039.7,3038.6,1.40183811]
[1769033213067,0.00384246,3039.7,3038.6,1.40611064]
[1769033213464,0.00384246,3039.7,3038.7,0.16466]
[1769033213765,0.00384246,3039.7,3038.7,1.56649811]
[1769033215570,0.00384246,3039.7,3038.7,1.40183811]
[1769033215864,0.00384246,3039.7,3038.6,0.00427253]
[1769033216862,1.3728423,3039.7,3038.6,0.00427253]
[1769033217767,1.3728423,3039.7,3037.7,0.16472]
[1769033218267,1.36899984,3039.5,3037.7,0.16472]
[1769033218768,1.36899984,3039.5,3037.7,0.16793876]
[1769033227370,1.39363824,3039.3,3037.7,0.16793876]
[1769033230873,1.39363824,3039.3,3037.7,1.64256086]
[1769033231265,0.83343509,3039.2,3037.7,1.64256086]
[1769033231474,1.39363824,3039.3,3037.7,1.64256086]
[1769033231672,1.11154144,3039.2,3037.7,1.64256086]
[1769033231973,1.39363824,3039.3,3037.7,1.64256086]
[1769033232174,1.11083915,3039.2,3037.7,1.64256086]
[1769033232374,1.11206973,3039.1,3037.7,1.64256086]
[1769033232574,1.39363824,3039.3,3037.7,1.64256086]
[1769033232775,1.1120695,3039.2,3037.7,1.64256086]
[1769033233073,1.1120695,3039.1,3037.7,1.64256086]
[1769033233377,0.27848508,3039.0,3037.7,1.64256086]
[1769033233575,1.39363824,3039.3,3037.7,1.64256086]
[1769033233775,1.11255053,3039.2,3037.7,1.64256086]
[1769033233981,1.11255053,3039.1,3037.7,1.64256086]
[1769033234277,0.27848443,3039.0,3037.7,1.64256086]
[1769033234477,1.39363824,3039.3,3037.7,1.64256086]
[1769033234674,1.11293465,3039.2,3037.7,1.64256086]
[1769033234874,1.11293465,3039.1,3037.7,1.64256086]
[1769033235075,1.11293465,3039.0,3037.7,1.64256086]
[1769033235280,1.39363824,3039.3,3037.7,1.64256086]
[1769033235575,1.11312938,3039.2,3037.7,1.64256086]
[1769033235779,1.11312938,3039.1,3037.7,1.64256086]
[1769033235973,1.11312938,3039.0,3037.7,1.64256086]
[1769033236174,1.39363824,3039.3,3037.7,1.64256086]
[1769033236370,1.11311565,3039.2,3037.7,1.64256086]
[1769033236581,1.11311565,3039.1,3037.7,1.64256086]
[1769033236778,1.11311565,3039.0,3037.7,1.64256086]
[1769033236973,1.3974807,3039.7,3038.1,1.6393121]
[1769033237177,1.11320663,3039.6,3038.1,1.6393121]
[1769033237380,1.11320663,3039.5,3038.1,1.6393121]
[1769033237677,1.11320663,3039.4,3038.1,1.6393121]
[1769033237880,1.11320663,3039.3,3038.1,1.6393121]
[1769033238081,1.11320663,3039.2,3038.1,1.6393121]
[1769033238280,0.27865678,3039.1,3038.1,1.6393121]
[1769033238481,1.3974807,3039.7,3038.1,1.6393121]
[1769033238685,1.11410686,3039.6,3038.1,1.6393121]
[1769033238887,1.11410686,3039.5,3038.1,1.6393121]
[1769033239186,1.11410686,3039.4,3038.1,1.6393121]
[1769033239384,1.11410686,3039.3,3038.1,1.6393121]
[1769033239586,1.11410686,3039.2,3038.1,1.6393121]
[1769033239885,0.27888207,3039.1,3038.1,1.6393121]
[1769033240087,1.3974807,3039.7,3038.1,1.6393121]
[1769033240386,1.11432107,3039.6,3038.1,1.6393121]
[1769033240574,1.11432107,3039.5,3038.1,1.6393121]
[1769033240777,1.11432107,3039.4,3038.1,1.6393121]
[1769033241085,1.11432107,3039.3,3038.1,1.6393121]
[1769033241385,1.11432107,3039.2,3038.1,1.6393121]
[1769033241680,0.27890523,3039.1,3038.1,1.6393121]
[1769033241882,1.3974807,3039.7,3038.1,1.6393121]
[1769033242082,1.1146015,3039.6,3038.1,1.6393121]
[1769033242284,1.1146015,3039.5,3038.1,1.6393121]
[1769033242485,1.1146015,3039.4,3038.1,1.6393121]
[1769033242684,1.1146015,3039.3,3038.1,1.6393121]
[1769033242886,0.27900997,3039.2,3038.1,1.6393121]
[1769033243079,0.27900997,3039.1,3038.1,1.6393121]
[1769033243280,1.3974807,3039.7,3038.1,1.6393121]
[1769033243580,1.11544665,3039.6,3038.1,1.6393121]
[1769033243780,1.11544665,3039.5,3038.1,1.6393121]
[1769033243982,1.11544665,3039.4,3038.1,1.6393121]
[1769033244181,1.11544672,3039.3,3038.1,1.6393121]
[1769033244383,1.11544672,3039.2,3038.1,1.6393121]
[1769033244584,0.27914315,3039.1,3038.1,1.6393121]
[1769033244784,1.3974807,3039.7,3038.1,1.6393121]
[1769033244990,1.11589867,3039.6,3038.1,1.6393121]
[1769033245188,1.11589867,3039.5,3038.1,1.6393121]
[1769033245388,1.11589867,3039.4,3038.1,1.6393121]
[1769033245587,1.3974807,3039.7,3038.1,1.6393121]
[1769033245588,1.11589867,3039.3,3038.1,1.6393121]
[1769033245787,1.11589867,3039.2,3038.1,1.6393121]
[1769033245984,0.27925608,3039.1,3038.1,1.6393121]
[1769033246179,0.27925608,3039.0,3038.1,1.6393121]
[1769033246379,1.3974807,3039.7,3038.1,1.6393121]
[1769033246589,1.11614702,3039.6,3038.1,1.6393121]
[1769033246790,1.11614702,3039.5,3038.1,1.6393121]
[1769033246992,1.11614702,3039.4,3038.1,1.6393121]
[1769033247189,1.11614702,3039.3,3038.1,1.6393121]
[1769033247486,1.11614702,3039.2,3038.1,1.6393121]
[1769033247687,0.27948876,3039.1,3038.1,1.6393121]
[1769033247886,0.27948876,3039.0,3038.1,1.6393121]
[1769033248089,1.3974807,3039.7,3038.1,1.6393121]
[1769033248387,2.50892315,3039.6,3038.1,1.6393121]
[1769033248593,1.11528491,3039.5,3038.1,1.6393121]
[1769033248790,1.11528491,3039.4,3038.1,1.6393121]
[1769033248991,1.11528491,3039.3,3038.1,1.6393121]
[1769033249192,1.11528491,3039.2,3038.1,1.6393121]
[1769033249394,0.2794765,3039.1,3038.1,1.6393121]
[1769033249593,0.2794765,3039.0,3038.1,1.6393121]
[1769033249895,1.39363824,3039.6,3038.1,1.6393121]
[1769033250091,1.11519345,3039.5,3038.1,1.6393121]
[1769033250396,1.11519345,3039.4,3038.1,1.6393121]
[1769033250694,1.11519345,3039.3,3038.1,1.6393121]
[1769033250893,1.11519345,3039.2,3038.1,1.6393121]
[1769033251195,0.27945375,3039.1,3038.1,1.6393121]
[1769033251396,0.2794474,3039.0,3038.1,1.6393121]
[1769033251695,1.39363824,3039.6,3038.1,1.6393121]
[1769033251889,1.11516806,3039.5,3038.1,1.6393121]
[1769033252088,1.11516806,3039.4,3038.1,1.6393121]
[1769033252293,1.11516806,3039.3,3038.1,1.6393121]
[1769033252490,1.11516806,3039.2,3038.1,1.6393121]
[1769033252790,0.27944736,3039.1,3038.1,1.6393121]
[1769033252992,0.27944736,3039.0,3038.1,1.6393121]
[1769033253193,1.39363824,3039.6,3038.1,1.6393121]
[1769033253491,1.11534649,3039.5,3038.1,1.6393121]
[1769033253693,1.11534649,3039.4,3038.1,1.6393121]
[1769033253890,1.11534649,3039.3,3038.1,1.6393121]
[1769033254090,1.11534649,3039.2,3038.1,1.6393121]
[1769033254390,0.27949209,3039.1,3038.1,1.6393121]
[1769033254592,0.27949209,3039.0,3038.1,1.6393121]
[1769033254793,1.39363824,3039.6,3038.1,1.6393121]
[1769033254994,1.11542408,3039.5,3038.1,1.6393121]
[1769033255297,1.11542408,3039.4,3038.1,1.6393121]
[1769033255490,1.11542408,3039.3,3038.1,1.6393121]
[1769033255692,1.11542408,3039.2,3038.1,1.6393121]
[1769033255989,0.27957375,3039.1,3038.1,1.6393121]
[1769033256199,0.27957375,3039.0,3038.1,1.6393121]
[1769033256398,0.27957375,3038.9,3038.1,1.6393121]
[1769033256694,1.39363824,3039.6,3038.1,1.6393121]
[1769033256893,1.1154289,3039.5,3038.1,1.6393121]
[1769033257093,1.1154289,3039.4,3038.1,1.6393121]
[1769033257297,1.1154289,3039.3,3038.1,1.6393121]
[1769033257595,1.1154289,3039.2,3038.1,1.6393121]
[1769033257798,0.27957818,3039.1,3038.1,1.6393121]
[1769033258098,0.27957818,3039.0,3038.1,1.6393121]
[1769033258298,0.27957818,3038.9,3038.1,1.6393121]
[1769033258500,1.39363824,3039.6,3038.1,1.6393121]
[1769033258702,1.11550414,3039.5,3038.1,1.6393121]
[1769033258894,1.11550414,3039.4,3038.1,1.6393121]
[1769033259202,1.11550414,3039.3,3038.1,1.6393121]
[1769033259498,1.11550414,3039.2,3038.1,1.6393121]
[1769033259700,0.27959703,3039.1,3038.1,1.6393121]
[1769033259997,0.27959703,3039.0,3038.1,1.6393121]
[1769033260192,0.27959703,3038.9,3038.1,1.6393121]
[1769033260387,1.39363824,3039.6,3038.1,1.6393121]
[1769033260595,1.11558468,3039.5,3038.1,1.6393121]
[1769033260796,1.11558468,3039.4,3038.1,1.6393121]
[1769033260995,1.11558468,3039.3,3038.1,1.6393121]
[1769033261196,1.11558468,3039.2,3038.1,1.6393121]
[1769033261502,0.27962415,3039.1,3038.1,1.6393121]
[1769033261701,0.27962415,3039.0,3038.1,1.6393121]
[1769033261995,0.27962415,3038.9,3038.1,1.6393121]
[1769033262194,1.39363824,3039.6,3038.1,1.6393121]
[1769033262395,1.1156494,3039.5,3038.1,1.6393121]
[1769033262594,1.1156494,3039.4,3038.1,1.6393121]
[1769033262796,1.1156494,3039.3,3038.1,1.6393121]
[1769033263093,1.1156494,3039.2,3038.1,1.6393121]
[1769033263295,0.27964061,3039.1,3038.1,1.6393121]
[1769033263598,0.27964061,3039.0,3038.1,1.6393121]
[1769033263787,0.27964061,3038.9,3038.1,1.6393121]
[1769033263986,1.49546522,3039.5,3038.1,1.6393121]
[1769033264302,1.49546522,3039.3,3037.9,2.37003016]
[1769033264498,1.49546522,3039.3,3037.7,2.96575646]
[1769033264499,1.49546522,3039.1,3037.8,2.37003016]
[1769033264698,1.11584112,3039.0,3037.8,2.37003016]
[1769033265001,1.11584112,3038.9,3037.8,2.37003016]
[1769033265198,0.27969207,3038.8,3037.8,2.37003016]
[1769033265393,0.27969207,3038.7,3037.8,2.37003016]
[1769033265690,0.27969207,3038.6,3037.8,2.37003016]
[1769033265891,1.49546522,3039.1,3037.8,2.37003016]
[1769033266091,1.12679731,3039.0,3037.8,2.37003016]
[1769033266289,1.12679731,3039.0,3037.7,0.00321876]
[1769033266290,1.12679736,3038.9,3037.7,2.37324892]
[1769033266495,0.27968095,3038.8,3037.8,2.37003016]
[1769033266698,0.27968095,3038.7,3037.8,2.37003016]
[1769033266894,1.49546522,3039.1,3037.8,2.37003016]
[1769033267102,1.12679931,3039.0,3037.8,2.37003016]
[1769033267300,1.12679931,3038.9,3037.7,2.37324892]
[1769033267598,0.27968142,3038.8,3037.7,2.37324892]
[1769033267898,0.27968142,3038.7,3037.7,2.37324892]
[1769033268095,0.27968142,3038.6,3037.7,2.37324892]
[1769033268296,1.49546522,3039.1,3037.7,2.37324892]
[1769033268496,1.12656454,3039.0,3037.7,2.37324892]
[1769033268698,1.12656454,3038.9,3037.7,2.37324892]
[1769033268898,0.27962487,3038.8,3037.7,2.37324892]
[1769033269100,0.27962487,3038.7,3037.7,2.37324892]
[1769033269300,1.49546522,3039.1,3037.7,2.37324892]
[1769033269496,2.62194151,3039.0,3037.7,0.00321876]
[1769033269703,1.12647629,3038.9,3037.7,0.00321876]
[1769033269901,1.12647629,3038.8,3037.7,0.00321876]
[1769033270102,1.12647629,3038.7,3037.7,0.00321876]
[1769033270303,0.27960294,3038.6,3037.7,0.00321876]
[1769033270496,0.27960294,3038.5,3037.7,0.00321876]
[1769033270697,1.49546522,3039.0,3037.7,0.00321876]
[1769033270996,1.12633406,3038.9,3037.7,0.00321876]
[1769033271198,1.12633406,3038.8,3037.7,0.00321876]
[1769033271399,1.12633406,3038.7,3037.7,0.00321876]
[1769033271599,0.27956924,3038.6,3037.7,0.00321876]
[1769033271904,0.27956924,3038.5,3037.7,0.00321876]
[1769033272105,1.49546522,3039.0,3037.7,0.00321876]
[1769033272296,1.12607377,3038.9,3037.7,0.00321876]
[1769033272499,1.12607377,3038.8,3037.7,0.00321876]
[1769033272700,1.12607377,3038.7,3037.7,0.00321876]
[1769033272904,0.27950476,3038.6,3037.7,0.00321876]
[1769033273107,0.27950476,3038.5,3037.7,0.00321876]
[1769033273303,1.49546522,3039.3,3037.7,0.00321876]
[1769033273507,2.61958749,3039.2,3037.7,0.00321876]
[1769033273706,1.12412227,3039.1,3037.7,0.00321876]
[1769033274008,1.12412227,3039.0,3037.7,0.00321876]
[1769033274206,1.12412227,3038.9,3037.7,0.00321876]
[1769033274406,1.12408948,3038.8,3037.7,0.00321876]
[1769033274606,1.49546522,3039.2,3037.7,0.00321876]
[1769033274905,1.123992,3039.1,3037.9,1.71105308]
[1769033275209,0.27942347,3039.0,3037.9,1.71105308]
[1769033275394,1.49546522,3039.6,3037.9,1.71105308]
[1769033275598,1.12629321,3039.5,3037.9,1.71105308]
[1769033275805,1.12629321,3039.4,3037.9,1.71105308]
[1769033276000,1.12629321,3039.3,3037.9,1.71105308]
[1769033276202,1.12629321,3039.2,3037.9,1.71105308]
[1769033276402,1.12629321,3039.1,3037.9,1.71105308]
[1769033276709,0.27941554,3039.0,3037.9,1.71105308]
[1769033276901,0.27941554,3038.9,3037.9,1.71105308]
[1769033277102,1.49546522,3039.5,3037.9,1.71105308]
[1769033277305,1.12629942,3039.4,3037.9,1.71105308]
[1769033277604,1.12629942,3039.3,3037.9,1.71105308]
[1769033277802,1.12629942,3039.2,3037.9,1.71105308]
[1769033278007,0.2794156,3039.1,3037.9,1.71105308]
[1769033278205,0.2794156,3039.0,3037.9,1.71105308]
[1769033278408,1.49546522,3039.5,3037.9,1.71105308]
[1769033278608,1.12628621,3039.4,3037.9,1.71105308]
[1769033278805,1.12628621,3039.3,3037.9,1.71105308]
[1769033279006,1.12628621,3039.2,3038.0,1.71104308]
[1769033279207,1.49546522,3039.5,3038.0,1.71104308]
[1769033279208,0.27941261,3039.1,3038.0,1.71104308]
[1769033279410,0.27941261,3039.0,3038.0,1.71104308]
[1769033279613,1.49546522,3039.5,3038.0,1.71104308]
[1769033279809,1.12631561,3039.4,3038.0,1.71104308]
[1769033280009,1.12631561,3039.3,3038.0,1.71104308]
[1769033280210,1.12631561,3039.2,3038.0,1.71104308]
[1769033280510,0.27942073,3039.1,3038.0,1.71104308]
[1769033280710,0.27942073,3039.0,3038.0,1.71104308]
[1769033280910,1.49546522,3039.5,3038.0,1.71104308]
[1769033281111,1.12571173,3039.4,3038.0,1.71104308]
[1769033281413,1.12571173,3039.3,3038.0,1.71104308]
[1769033281713,1.12571173,3039.2,3038.0,1.71104308]
[1769033281906,1.12571173,3039.1,3038.0,1.71104308]
[1769033282107,0.27945056,3039.0,3038.0,1.71104308]
[1769033282308,1.49546522,3039.5,3038.0,1.71104308]
[1769033282614,1.12558607,3039.4,3038.0,1.71104308]
[1769033282814,1.12558607,3039.3,3038.0,1.71104308]
[1769033283014,1.12558607,3039.2,3038.0,1.71104308]
[1769033283216,1.12558607,3039.1,3038.0,1.71104308]
[1769033283406,0.2794288,3039.0,3038.0,1.71104308]
[1769033283610,1.49546522,3039.5,3038.0,1.71104308]
[1769033283904,1.12525598,3039.4,3038.0,1.71104308]
[1769033284213,1.49546522,3039.5,3038.0,1.71104308]
[1769033284214,1.12525598,3039.3,3038.0,1.71104308]
[1769033284409,1.12525598,3039.2,3038.0,1.71104308]
[1769033284617,0.2793379,3039.1,3038.0,1.71104308]
[1769033284917,0.2793379,3039.0,3038.0,1.71104308]
[1769033285215,1.49546522,3039.5,3038.0,1.71104308]
[1769033285418,1.12533965,3039.4,3038.0,1.71104308]
[1769033285614,1.12533965,3039.3,3038.0,1.71104308]
[1769033285816,1.12533965,3039.2,3038.0,1.71104308]
[1769033286116,0.27935789,3039.1,3038.0,1.71104308]
[1769033286315,1.49546522,3039.5,3038.0,1.71104308]
[1769033286316,0.27935789,3039.0,3038.0,1.71104308]
[1769033286516,0.27935789,3038.9,3038.0,0.1647]
[1769033286815,1.48079159,3039.2,3038.0,0.1647]
[1769033287018,0.27939582,3039.1,3038.0,0.1647]
[1769033287207,0.27939582,3039.0,3038.0,0.1647]
[1769033287411,0.27939582,3038.9,3038.0,0.1647]
[1769033287612,1.48079159,3039.2,3038.0,0.1647]
[1769033287812,1.48079159,3039.0,3037.7,0.00321876]
[1769033288015,1.48079159,3038.8,3037.7,0.00321876]
[1769033288214,1.12567468,3038.7,3037.7,0.00321876]
[1769033288415,1.12567468,3038.6,3037.7,0.00321876]
[1769033288628,0.27944262,3038.5,3037.7,0.00321876]
[1769033288914,1.76013385,3038.4,3037.7,0.00321876]
[1769033289120,1.76013385,3038.3,3036.8,2.53479016]
[1769033289321,0.27934226,3038.2,3036.8,0.16476]
[1769033289517,1.48079159,3038.0,3036.7,2.626]
[1769033289721,1.48079159,3038.8,3037.0,1.54374595]
[1769033289918,2.60597222,3038.7,3037.0,1.54374595]
[1769033290121,1.12518063,3038.6,3037.0,1.54374595]
[1769033290321,1.12518063,3038.5,3037.0,1.71132569]
[1769033290522,1.12518063,3038.4,3037.0,1.71132569]
[1769033290711,0.27920671,3038.3,3037.0,1.71132569]
[1769033291021,0.27920671,3038.2,3037.0,1.71132569]
[1769033291222,1.48079159,3038.7,3037.0,1.71132569]
[1769033291522,2.60537802,3038.6,3037.0,1.71132569]
[1769033291725,1.48079159,3038.4,3037.0,0.16757974]
[1769033292021,1.48079159,3038.2,3037.0,0.00282974]
[1769033292217,2.60537802,3038.1,3037.0,0.00282974]
[1769033292520,1.75984842,3038.0,3037.0,0.00282974]
[1769033292726,1.48079159,3037.8,3036.1,1.54374595]
[1769033292921,0.16469,3038.2,3036.1,1.54374595]
[1769033292922,1.48079159,3037.6,3036.1,1.54374595]
[1769033293422,0.27863585,3037.5,3036.1,1.54374595]
[1769033293622,1.48425559,3037.5,3036.1,1.54787811]
[1769033293812,0.2786174,3037.4,3036.1,1.54787811]
[1769033294012,1.48425559,3037.5,3036.1,1.54787811]
[1769033295514,1.48425559,3037.5,3036.1,0.00413216]